[Event "Titled Tuesday Blitz January 03 Early 2023"]
[White "Sanchez, Robert"]
[Black "Zainullina, Nataliya"]
[WhiteFideId "2034360"]
[BlackFideId "4145488"]
[WhiteElo "1966"]
[BlackElo "2099"]
[Result "1/2-1/2"]
[Round "08"]
[TimeControl "180+2"]
[Date "2023.01.03"]
[WhiteClock "0:00:04"]
[BlackClock "0:00:08"]

1. e4 {[%clk 0:03:00]}  c6 {[%clk 0:02:58]} 2. d4 {[%clk 0:03:00]}  d5 {[%clk 0:02:59]} 3. e5 {[%clk 0:03:01]}  Bf5 {[%clk 0:02:58]} 4. Nf3 {[%clk 0:03:02]}  e6 {[%clk 0:02:58]} 5. Be2 {[%clk 0:03:00]}  c5 {[%clk 0:02:59]} 6. O-O {[%clk 0:02:59]}  Nc6 {[%clk 0:02:59]} 7. c3 {[%clk 0:02:59]}  c4 {[%clk 0:02:56]} 8. Re1 {[%clk 0:02:56]}  Nge7 {[%clk 0:02:56]} 9. Nbd2 {[%clk 0:02:57]}  Bg6 {[%clk 0:02:55]} 10. Nf1 {[%clk 0:02:57]}  Nf5 {[%clk 0:02:55]} 11. Ne3 {[%clk 0:02:56]}  Nxe3 {[%clk 0:02:54]} 12. Bxe3 {[%clk 0:02:56]}  Be7 {[%clk 0:02:54]} 13. Qd2 {[%clk 0:02:50]}  O-O {[%clk 0:02:53]} 14. Bd1 {[%clk 0:02:41]}  b5 {[%clk 0:02:52]} 15. Bc2 {[%clk 0:02:41]}  b4 {[%clk 0:02:51]} 16. Ng5 {[%clk 0:02:36]}  bxc3 {[%clk 0:02:47]} 17. bxc3 {[%clk 0:02:33]}  Rb8 {[%clk 0:02:43]} 18. Bxg6 {[%clk 0:02:29]}  hxg6 {[%clk 0:02:41]} 19. h4 {[%clk 0:02:26]}  Ba3 {[%clk 0:02:36]} 20. Rab1 {[%clk 0:02:25]}  Qa5 {[%clk 0:02:32]} 21. Qc2 {[%clk 0:02:11]}  Ne7 {[%clk 0:02:09]} 22. h5 {[%clk 0:02:08]}  Rb6 {[%clk 0:01:53]} 23. hxg6 {[%clk 0:02:07]}  Nxg6 {[%clk 0:01:52]} 24. Qe2 {[%clk 0:02:06]}  f6 {[%clk 0:01:44]} 25. Qh5 {[%clk 0:01:57]}  fxg5 {[%clk 0:01:43]} 26. Qxg6 {[%clk 0:01:57]}  Qxc3 {[%clk 0:01:35]} 27. Bxg5 {[%clk 0:01:56]}  Qxd4 {[%clk 0:01:33]} 28. Bf6 {[%clk 0:01:56]}  Rf7 {[%clk 0:01:29]} 29. Rbd1 {[%clk 0:01:44]}  Qc5 {[%clk 0:01:27]} 30. Re3 {[%clk 0:01:41]}  c3 {[%clk 0:01:18]} 31. Rh3 {[%clk 0:01:30]}  Rxf6 {[%clk 0:01:06]} 32. exf6 {[%clk 0:01:30]}  Qf8 {[%clk 0:00:56]} 33. f7+ {[%clk 0:01:10]}  Qxf7 {[%clk 0:00:54]} 34. Rh8+ {[%clk 0:01:10]}  Kxh8 {[%clk 0:00:54]} 35. Qxf7 {[%clk 0:01:11]}  c2 {[%clk 0:00:54]} 36. Qh5+ {[%clk 0:00:54]}  Kg8 {[%clk 0:00:51]} 37. Qe8+ {[%clk 0:00:38]}  Kh7 {[%clk 0:00:47]} 38. Qh5+ {[%clk 0:00:29]}  Kg8 {[%clk 0:00:47]} 39. Qe8+ {[%clk 0:00:28]}  Kh7 {[%clk 0:00:21]} 40. Re1 {[%clk 0:00:19]}  Rb1 {[%clk 0:00:18]} 41. Qh5+ {[%clk 0:00:18]}  Kg8 {[%clk 0:00:18]} 42. Qe8+ {[%clk 0:00:18]}  Kh7 {[%clk 0:00:18]} 43. Qh5+ {[%clk 0:00:15]}  Kg8 {[%clk 0:00:18]} 44. Qe8+ {[%clk 0:00:16]}  Bf8 {[%clk 0:00:11]} 45. Qxe6+ {[%clk 0:00:15]}  Kh8 {[%clk 0:00:09]} 46. Qh3+ {[%clk 0:00:10]}  Kg8 {[%clk 0:00:08]} 47. Qe6+ {[%clk 0:00:10]}  Kh8 {[%clk 0:00:08]} 48. Qh3+ {[%clk 0:00:06]}  Kg8 {[%clk 0:00:08]} 49. Qe6+ {[%clk 0:00:04]} 1/2-1/2


[Site "https://www.chess.com"]

[Event "Titled Tuesday Blitz January 03 Early 2023"]
[White "Eisa Mohmood, Alkhoori"]
[Black "Chernov, Mikhail"]
[WhiteFideId "9316116"]
[BlackFideId "24143170"]
[WhiteElo "1095"]
[BlackElo "2205"]
[Result "0-1"]
[Round "08"]
[TimeControl "180+2"]
[Date "2023.01.03"]
[WhiteClock "0:00:02"]
[BlackClock "0:01:21"]

1. d4 {[%clk 0:03:00]}  d5 {[%clk 0:02:56]} 2. Nf3 {[%clk 0:03:00]}  Nc6 {[%clk 0:02:56]} 3. g3 {[%clk 0:02:59]}  Bg4 {[%clk 0:02:57]} 4. Bg2 {[%clk 0:02:58]}  Qd7 {[%clk 0:02:57]} 5. h3 {[%clk 0:02:58]}  Bxf3 {[%clk 0:02:57]} 6. Bxf3 {[%clk 0:02:57]}  O-O-O {[%clk 0:02:58]} 7. Bg2 {[%clk 0:02:56]}  e5 {[%clk 0:02:58]} 8. dxe5 {[%clk 0:02:54]}  Nxe5 {[%clk 0:02:58]} 9. O-O {[%clk 0:02:54]}  Kb8 {[%clk 0:02:58]} 10. Be3 {[%clk 0:02:41]}  h5 {[%clk 0:02:57]} 11. a4 {[%clk 0:02:38]}  Nc4 {[%clk 0:02:49]} 12. Bd4 {[%clk 0:02:24]}  h4 {[%clk 0:02:49]} 13. b3 {[%clk 0:02:21]}  Nd6 {[%clk 0:02:43]} 14. g4 {[%clk 0:02:06]}  Nf6 {[%clk 0:02:27]} 15. Bxf6 {[%clk 0:02:02]}  gxf6 {[%clk 0:02:27]} 16. Qxd5 {[%clk 0:02:03]}  f5 {[%clk 0:02:21]} 17. gxf5 {[%clk 0:02:00]}  Rg8 {[%clk 0:02:21]} 18. Nc3 {[%clk 0:01:37]}  Bg7 {[%clk 0:02:19]} 19. Nb5 {[%clk 0:01:34]}  Bxa1 {[%clk 0:02:19]} 20. Nxd6 {[%clk 0:01:21]}  cxd6 {[%clk 0:02:20]} 21. Rxa1 {[%clk 0:01:21]}  Rc8 {[%clk 0:02:09]} 22. c4 {[%clk 0:01:14]}  Rc5 {[%clk 0:02:09]} 23. Qd4 {[%clk 0:01:13]}  Rxf5 {[%clk 0:02:08]} 24. Kh1 {[%clk 0:01:06]}  Rfg5 {[%clk 0:02:06]} 25. Bf1 {[%clk 0:00:33]}  Rg1+ {[%clk 0:02:00]} 26. Kh2 {[%clk 0:00:34]}  Qc6 {[%clk 0:01:38]} 27. f3 {[%clk 0:00:27]}  Qc7 {[%clk 0:01:21]} 28. Qd5 {[%clk 0:00:02]}  Qb6 {[%clk 0:01:21]} 0-1


[Site "https://www.chess.com"]

[Event "Titled Tuesday Blitz January 03 Early 2023"]
[White "Van den Dikkenberg, Erik"]
[Black "Ezat, Mohamed"]
[WhiteFideId "1005880"]
[BlackFideId "10600906"]
[WhiteElo "2091"]
[BlackElo "2402"]
[Result "0-1"]
[Round "08"]
[TimeControl "180+2"]
[Date "2023.01.03"]
[WhiteClock "0:01:49"]
[BlackClock "0:02:18"]

1. e4 {[%clk 0:02:50]}  c6 {[%clk 0:02:58]} 2. d4 {[%clk 0:02:40]}  d5 {[%clk 0:02:58]} 3. exd5 {[%clk 0:02:40]}  cxd5 {[%clk 0:02:57]} 4. Bd3 {[%clk 0:02:41]}  Nc6 {[%clk 0:02:56]} 5. c3 {[%clk 0:02:41]}  Qc7 {[%clk 0:02:55]} 6. f4 {[%clk 0:02:41]}  Nf6 {[%clk 0:02:45]} 7. Nf3 {[%clk 0:02:39]}  Bg4 {[%clk 0:02:45]} 8. O-O {[%clk 0:02:39]}  e6 {[%clk 0:02:45]} 9. Qe1 {[%clk 0:02:39]}  Bxf3 {[%clk 0:02:45]} 10. Rxf3 {[%clk 0:02:39]}  Bd6 {[%clk 0:02:30]} 11. Qh4 {[%clk 0:02:30]}  O-O-O {[%clk 0:02:25]} 12. b4 {[%clk 0:02:23]}  Nxd4 {[%clk 0:02:20]} 13. cxd4 {[%clk 0:01:49]}  Qxc1+ {[%clk 0:02:19]} 14. Rf1 {[%clk 0:01:49]}  Qe3+ {[%clk 0:02:18]} 0-1


[Site "https://www.chess.com"]

[Event "Titled Tuesday Blitz January 03 Early 2023"]
[White "Gavilan Diaz, Mario"]
[Black "Barbot, Pierre"]
[WhiteFideId "2260905"]
[BlackFideId "663727"]
[WhiteElo "2271"]
[BlackElo "2458"]
[Result "0-1"]
[Round "08"]
[TimeControl "180+2"]
[Date "2023.01.03"]
[WhiteClock "0:00:05"]
[BlackClock "0:00:15"]

1. d4 {[%clk 0:03:00]}  Nf6 {[%clk 0:02:58]} 2. c4 {[%clk 0:03:01]}  g6 {[%clk 0:02:58]} 3. Nc3 {[%clk 0:03:01]}  d5 {[%clk 0:02:57]} 4. Nf3 {[%clk 0:02:55]}  Bg7 {[%clk 0:02:48]} 5. Bf4 {[%clk 0:02:55]}  O-O {[%clk 0:02:41]} 6. Rc1 {[%clk 0:02:55]}  c5 {[%clk 0:02:39]} 7. dxc5 {[%clk 0:02:53]}  Qa5 {[%clk 0:02:39]} 8. cxd5 {[%clk 0:02:53]}  Ne4 {[%clk 0:02:30]} 9. Be5 {[%clk 0:02:45]}  Bxe5 {[%clk 0:02:23]} 10. Nxe5 {[%clk 0:02:45]}  Nxc3 {[%clk 0:02:20]} 11. Rxc3 {[%clk 0:02:43]}  Qxa2 {[%clk 0:02:12]} 12. Qd2 {[%clk 0:02:31]}  Rd8 {[%clk 0:01:54]} 13. Qf4 {[%clk 0:01:20]}  f6 {[%clk 0:01:38]} 14. Nd3 {[%clk 0:01:19]}  Qxd5 {[%clk 0:01:34]} 15. e4 {[%clk 0:01:17]}  Qd4 {[%clk 0:01:32]} 16. Be2 {[%clk 0:01:14]}  Be6 {[%clk 0:01:22]} 17. O-O {[%clk 0:01:13]}  Nc6 {[%clk 0:01:21]} 18. h4 {[%clk 0:00:49]}  Bf7 {[%clk 0:01:12]} 19. h5 {[%clk 0:00:41]}  gxh5 {[%clk 0:01:11]} 20. Qg3+ {[%clk 0:00:38]}  Kh8 {[%clk 0:01:08]} 21. Nf4 {[%clk 0:00:36]}  Qxe4 {[%clk 0:01:05]} 22. Re3 {[%clk 0:00:33]}  Qf5 {[%clk 0:01:02]} 23. Bf3 {[%clk 0:00:21]}  Rg8 {[%clk 0:00:35]} 24. Qh2 {[%clk 0:00:21]}  Ne5 {[%clk 0:00:31]} 25. Bxh5 {[%clk 0:00:16]}  Bxh5 {[%clk 0:00:28]} 26. Nxh5 {[%clk 0:00:16]}  Ng4 {[%clk 0:00:27]} 27. Qh4 {[%clk 0:00:10]}  Nxe3 {[%clk 0:00:24]} 28. fxe3 {[%clk 0:00:11]}  Qg5 {[%clk 0:00:22]} 29. Qh3 {[%clk 0:00:12]}  Rg6 {[%clk 0:00:18]} 30. Nf4 {[%clk 0:00:10]}  Rh6 {[%clk 0:00:18]} 31. Qf3 {[%clk 0:00:10]}  Rg8 {[%clk 0:00:18]} 32. Rd1 {[%clk 0:00:07]}  Qh4 {[%clk 0:00:18]} 33. Rd7 {[%clk 0:00:06]}  Qe1+ {[%clk 0:00:15]} 34. Qf1 {[%clk 0:00:06]}  Rh1+ {[%clk 0:00:15]} 35. Kxh1 {[%clk 0:00:06]}  Qxf1+ {[%clk 0:00:16]} 36. Kh2 {[%clk 0:00:07]}  Qf2 {[%clk 0:00:15]} 37. Rxe7 {[%clk 0:00:06]}  Qg3+ {[%clk 0:00:15]} 38. Kg1 {[%clk 0:00:06]}  h6 {[%clk 0:00:15]} 39. Nh5 {[%clk 0:00:05]}  Qxg2# {[%clk 0:00:15]} 0-1


[Site "https://www.chess.com"]

[Event "Titled Tuesday Blitz January 03 Early 2023"]
[White "De Souza, Cristiano Gomes"]
[Black "Shuvalov, Evgenij"]
[WhiteFideId "2151758"]
[BlackFideId "4187237"]
[WhiteElo "2018"]
[BlackElo "2038"]
[Result "0-1"]
[Round "08"]
[TimeControl "180+2"]
[Date "2023.01.03"]
[WhiteClock "0:00:22"]
[BlackClock "0:00:19"]

1. d4 {[%clk 0:03:00]}  Nf6 {[%clk 0:02:55]} 2. c4 {[%clk 0:03:00]}  g6 {[%clk 0:02:55]} 3. Nc3 {[%clk 0:02:59]}  d5 {[%clk 0:02:55]} 4. Bf4 {[%clk 0:02:58]}  Bg7 {[%clk 0:02:54]} 5. Nf3 {[%clk 0:02:56]}  O-O {[%clk 0:02:52]} 6. e3 {[%clk 0:02:55]}  c5 {[%clk 0:02:46]} 7. dxc5 {[%clk 0:02:54]}  Ne4 {[%clk 0:02:45]} 8. Rc1 {[%clk 0:02:53]}  Nxc3 {[%clk 0:02:44]} 9. bxc3 {[%clk 0:02:54]}  Qa5 {[%clk 0:02:44]} 10. cxd5 {[%clk 0:02:54]}  Nd7 {[%clk 0:02:42]} 11. Be2 {[%clk 0:02:49]}  Bxc3+ {[%clk 0:02:32]} 12. Nd2 {[%clk 0:02:44]}  Nxc5 {[%clk 0:02:30]} 13. f3 {[%clk 0:02:43]}  Rd8 {[%clk 0:02:06]} 14. e4 {[%clk 0:02:39]}  e6 {[%clk 0:02:05]} 15. Qc2 {[%clk 0:02:24]}  Na4 {[%clk 0:01:41]} 16. O-O {[%clk 0:02:20]}  exd5 {[%clk 0:01:34]} 17. Nb3 {[%clk 0:02:20]}  Qb6+ {[%clk 0:01:27]} 18. Kh1 {[%clk 0:02:19]}  d4 {[%clk 0:01:24]} 19. Nxd4 {[%clk 0:01:54]}  Rxd4 {[%clk 0:01:04]} 20. Be3 {[%clk 0:01:54]}  Be6 {[%clk 0:01:03]} 21. Qxa4 {[%clk 0:01:48]}  Rxa4 {[%clk 0:00:52]} 22. Bxb6 {[%clk 0:01:48]}  Bb2 {[%clk 0:00:44]} 23. Rb1 {[%clk 0:01:38]}  Rxa2 {[%clk 0:00:42]} 24. Be3 {[%clk 0:01:33]}  a5 {[%clk 0:00:40]} 25. Rfd1 {[%clk 0:01:21]}  a4 {[%clk 0:00:38]} 26. Rd2 {[%clk 0:01:21]}  a3 {[%clk 0:00:37]} 27. Kg1 {[%clk 0:01:19]}  Bd4 {[%clk 0:00:21]} 28. Rxd4 {[%clk 0:01:12]}  Rxe2 {[%clk 0:00:20]} 29. Bg5 {[%clk 0:01:02]}  Rb2 {[%clk 0:00:20]} 30. Ra1 {[%clk 0:01:00]}  a2 {[%clk 0:00:19]} 31. Rdd1 {[%clk 0:01:00]}  b5 {[%clk 0:00:19]} 32. Bf6 {[%clk 0:00:59]}  Rc2 {[%clk 0:00:15]} 33. Rdc1 {[%clk 0:00:44]}  Rxc1+ {[%clk 0:00:15]} 34. Rxc1 {[%clk 0:00:44]}  b4 {[%clk 0:00:14]} 35. Bb2 {[%clk 0:00:43]}  b3 {[%clk 0:00:14]} 36. Kf2 {[%clk 0:00:43]}  Rc8 {[%clk 0:00:13]} 37. Rxc8+ {[%clk 0:00:42]}  Bxc8 {[%clk 0:00:14]} 38. Ke3 {[%clk 0:00:43]}  Be6 {[%clk 0:00:14]} 39. Kd4 {[%clk 0:00:43]}  h5 {[%clk 0:00:13]} 40. f4 {[%clk 0:00:42]}  Bg4 {[%clk 0:00:12]} 41. h3 {[%clk 0:00:41]}  Be2 {[%clk 0:00:11]} 42. g3 {[%clk 0:00:40]}  Bf1 {[%clk 0:00:11]} 43. Kc3 {[%clk 0:00:38]}  Bxh3 {[%clk 0:00:09]} 44. Kxb3 {[%clk 0:00:38]}  Be6+ {[%clk 0:00:10]} 45. Kc3 {[%clk 0:00:37]}  Kf8 {[%clk 0:00:10]} 46. Kd4 {[%clk 0:00:38]}  Ke7 {[%clk 0:00:11]} 47. Ba3+ {[%clk 0:00:37]}  Kd7 {[%clk 0:00:11]} 48. Bb2 {[%clk 0:00:38]}  Kc6 {[%clk 0:00:11]} 49. Ke5 {[%clk 0:00:37]}  Kb5 {[%clk 0:00:11]} 50. f5 {[%clk 0:00:37]}  Bc4 {[%clk 0:00:07]} 51. Kf6 {[%clk 0:00:36]}  gxf5 {[%clk 0:00:06]} 52. exf5 {[%clk 0:00:36]}  Kb4 {[%clk 0:00:06]} 53. Kg5 {[%clk 0:00:36]}  Be2 {[%clk 0:00:06]} 54. Kf6 {[%clk 0:00:36]}  Bg4 {[%clk 0:00:06]} 55. Kxf7 {[%clk 0:00:33]}  Bxf5 {[%clk 0:00:06]} 56. Kf6 {[%clk 0:00:33]}  Bg4 {[%clk 0:00:07]} 57. Ke5 {[%clk 0:00:28]}  Kb3 {[%clk 0:00:08]} 58. Ba1 {[%clk 0:00:27]}  Kc2 {[%clk 0:00:08]} 59. Kf4 {[%clk 0:00:17]}  Kb1 {[%clk 0:00:09]} 60. Be5 {[%clk 0:00:17]}  a1=Q {[%clk 0:00:10]} 61. Bxa1 {[%clk 0:00:17]}  Kxa1 {[%clk 0:00:11]} 62. Kg5 {[%clk 0:00:17]}  Kb1 {[%clk 0:00:12]} 63. Kh4 {[%clk 0:00:17]}  Kc2 {[%clk 0:00:13]} 64. Kg5 {[%clk 0:00:18]}  Kd2 {[%clk 0:00:14]} 65. Kf4 {[%clk 0:00:19]}  Ke2 {[%clk 0:00:14]} 66. Kg5 {[%clk 0:00:19]}  Kf2 {[%clk 0:00:15]} 67. Kh4 {[%clk 0:00:20]}  Kg2 {[%clk 0:00:16]} 68. Kg5 {[%clk 0:00:20]}  Kxg3 {[%clk 0:00:16]} 69. Kf6 {[%clk 0:00:20]}  h4 {[%clk 0:00:17]} 70. Ke5 {[%clk 0:00:21]}  h3 {[%clk 0:00:18]} 71. Kd4 {[%clk 0:00:22]}  h2 {[%clk 0:00:19]} 0-1


[Site "https://www.chess.com"]

[Event "Titled Tuesday Blitz January 03 Early 2023"]
[White "Lakshmi C"]
[Black "Quinones Garcia, Santiago"]
[WhiteFideId "25035347"]
[BlackFideId "4408497"]
[WhiteElo "1928"]
[BlackElo "2248"]
[Result "0-1"]
[Round "08"]
[TimeControl "180+2"]
[Date "2023.01.03"]
[WhiteClock "0:00:01"]
[BlackClock "0:01:57"]

1. e4 {[%clk 0:02:53]}  e5 {[%clk 0:02:57]} 2. Nf3 {[%clk 0:02:53]}  Nc6 {[%clk 0:02:56]} 3. Bb5 {[%clk 0:02:52]}  a6 {[%clk 0:02:56]} 4. Ba4 {[%clk 0:02:50]}  Nf6 {[%clk 0:02:56]} 5. O-O {[%clk 0:02:49]}  Be7 {[%clk 0:02:56]} 6. Re1 {[%clk 0:02:47]}  b5 {[%clk 0:02:56]} 7. Bb3 {[%clk 0:02:47]}  O-O {[%clk 0:02:57]} 8. h3 {[%clk 0:02:45]}  Bb7 {[%clk 0:02:54]} 9. c3 {[%clk 0:02:43]}  d5 {[%clk 0:02:52]} 10. exd5 {[%clk 0:02:32]}  Nxd5 {[%clk 0:02:53]} 11. d4 {[%clk 0:02:26]}  exd4 {[%clk 0:02:52]} 12. Nxd4 {[%clk 0:02:06]}  Nxd4 {[%clk 0:02:46]} 13. Qxd4 {[%clk 0:02:01]}  c5 {[%clk 0:02:45]} 14. Qg4 {[%clk 0:01:56]}  c4 {[%clk 0:02:43]} 15. Bc2 {[%clk 0:01:54]}  Re8 {[%clk 0:02:39]} 16. Bh6 {[%clk 0:01:41]}  Bf6 {[%clk 0:02:34]} 17. Nd2 {[%clk 0:01:36]}  Qd6 {[%clk 0:02:19]} 18. Ne4 {[%clk 0:01:27]}  Qc6 {[%clk 0:02:12]} 19. Nxf6+ {[%clk 0:01:08]}  Qxf6 {[%clk 0:02:11]} 20. Bg5 {[%clk 0:00:46]}  Qc6 {[%clk 0:02:10]} 21. Bf5 {[%clk 0:00:35]}  Nf6 {[%clk 0:02:00]} 22. Bxf6 {[%clk 0:00:05]}  Qxf6 {[%clk 0:02:01]} 23. Bd7 {[%clk 0:00:04]}  Re5 {[%clk 0:01:58]} 24. Rxe5 {[%clk 0:00:02]}  Qxe5 {[%clk 0:01:59]} 25. Bf5 {[%clk 0:00:01]}  Qd5 {[%clk 0:02:00]} 26. f3 {[%clk 0:00:01]}  h5 {[%clk 0:02:00]} 27. Qf4 {[%clk 0:00:01]}  Re8 {[%clk 0:01:59]} 28. Be4 {[%clk 0:00:01]}  Qc5+ {[%clk 0:01:57]} 29. Kh2 {[%clk 0:00:01]}  Bxe4 {[%clk 0:01:58]} 30. Qxe4 {[%clk 0:00:01]}  Rxe4 {[%clk 0:01:57]} 0-1


[Site "https://www.chess.com"]

[Event "Titled Tuesday Blitz January 03 Early 2023"]
[White "Kukula, Pawel"]
[Black "De Arruda, Leandro Formes"]
[WhiteFideId "1115081"]
[BlackFideId "22722009"]
[WhiteElo "2135"]
[BlackElo "1980"]
[Result "1-0"]
[Round "08"]
[TimeControl "180+2"]
[Date "2023.01.03"]
[WhiteClock "0:00:21"]
[BlackClock "0:00:07"]

1. Nc3 {[%clk 0:02:51]}  d5 {[%clk 0:02:59]} 2. e4 {[%clk 0:02:49]}  dxe4 {[%clk 0:03:00]} 3. Nxe4 {[%clk 0:02:49]}  Nf6 {[%clk 0:03:01]} 4. Ng3 {[%clk 0:02:45]}  e5 {[%clk 0:03:01]} 5. Bc4 {[%clk 0:02:44]}  Bd6 {[%clk 0:03:00]} 6. d3 {[%clk 0:02:44]}  O-O {[%clk 0:03:00]} 7. Nf3 {[%clk 0:02:44]}  Bg4 {[%clk 0:02:54]} 8. h3 {[%clk 0:02:43]}  Bxf3 {[%clk 0:02:50]} 9. Qxf3 {[%clk 0:02:44]}  Nc6 {[%clk 0:02:50]} 10. O-O {[%clk 0:02:41]}  Na5 {[%clk 0:02:42]} 11. Nf5 {[%clk 0:02:39]}  Nxc4 {[%clk 0:02:41]} 12. dxc4 {[%clk 0:02:40]}  e4 {[%clk 0:02:34]} 13. Qe2 {[%clk 0:02:40]}  Qd7 {[%clk 0:02:17]} 14. g4 {[%clk 0:02:24]}  Qe6 {[%clk 0:02:07]} 15. Bg5 {[%clk 0:02:15]}  Qe5 {[%clk 0:02:01]} 16. Nxd6 {[%clk 0:02:14]}  Qxg5 {[%clk 0:01:54]} 17. Nxe4 {[%clk 0:02:10]}  Nxe4 {[%clk 0:01:51]} 18. Qxe4 {[%clk 0:02:11]}  h5 {[%clk 0:01:46]} 19. Qf3 {[%clk 0:01:57]}  f5 {[%clk 0:01:42]} 20. Qd5+ {[%clk 0:01:53]}  Kh8 {[%clk 0:01:40]} 21. f4 {[%clk 0:01:40]}  Qh4 {[%clk 0:01:33]} 22. gxh5 {[%clk 0:01:33]}  Qxh3 {[%clk 0:01:11]} 23. Qg2 {[%clk 0:01:32]}  Qxh5 {[%clk 0:01:01]} 24. Rf3 {[%clk 0:01:31]}  Kg8 {[%clk 0:00:57]} 25. Rh3 {[%clk 0:01:24]}  Qf7 {[%clk 0:00:47]} 26. b3 {[%clk 0:01:16]}  Rad8 {[%clk 0:00:37]} 27. Qh2 {[%clk 0:01:13]}  Qf6 {[%clk 0:00:33]} 28. Re1 {[%clk 0:01:02]}  Qd4+ {[%clk 0:00:23]} 29. Kh1 {[%clk 0:01:00]}  Kf7 {[%clk 0:00:16]} 30. Rd3 {[%clk 0:00:46]}  Qf6 {[%clk 0:00:13]} 31. Rde3 {[%clk 0:00:41]}  Qc6+ {[%clk 0:00:10]} 32. Kg1 {[%clk 0:00:40]}  Rh8 {[%clk 0:00:10]} 33. Re7+ {[%clk 0:00:38]}  Kg8 {[%clk 0:00:05]} 34. Qg2 {[%clk 0:00:38]}  Qxg2+ {[%clk 0:00:03]} 35. Kxg2 {[%clk 0:00:39]}  Rc8 {[%clk 0:00:02]} 36. Rd7 {[%clk 0:00:37]}  Rh6 {[%clk 0:00:02]} 37. Ree7 {[%clk 0:00:36]}  Rg6+ {[%clk 0:00:02]} 38. Kf3 {[%clk 0:00:36]}  b6 {[%clk 0:00:01]} 39. Rxc7 {[%clk 0:00:34]}  Rxc7 {[%clk 0:00:02]} 40. Rxc7 {[%clk 0:00:35]}  a5 {[%clk 0:00:02]} 41. c5 {[%clk 0:00:34]}  bxc5 {[%clk 0:00:02]} 42. Rxc5 {[%clk 0:00:35]}  Ra6 {[%clk 0:00:02]} 43. Rxf5 {[%clk 0:00:35]}  g6 {[%clk 0:00:02]} 44. Rc5 {[%clk 0:00:32]}  Kg7 {[%clk 0:00:02]} 45. a4 {[%clk 0:00:32]}  Kh6 {[%clk 0:00:02]} 46. Ke4 {[%clk 0:00:32]}  Kg7 {[%clk 0:00:02]} 47. Kd5 {[%clk 0:00:32]}  Ra7 {[%clk 0:00:01]} 48. Rc6 {[%clk 0:00:32]}  Rf7 {[%clk 0:00:02]} 49. Ke5 {[%clk 0:00:31]}  Re7+ {[%clk 0:00:02]} 50. Re6 {[%clk 0:00:31]}  Rf7 {[%clk 0:00:03]} 51. c4 {[%clk 0:00:30]}  Rb7 {[%clk 0:00:03]} 52. Ra6 {[%clk 0:00:28]}  Rxb3 {[%clk 0:00:03]} 53. Rxa5 {[%clk 0:00:29]}  Rb4 {[%clk 0:00:04]} 54. Kd5 {[%clk 0:00:28]}  Kf7 {[%clk 0:00:03]} 55. Ra7+ {[%clk 0:00:28]}  Kf6 {[%clk 0:00:03]} 56. a5 {[%clk 0:00:27]}  Rb1 {[%clk 0:00:03]} 57. a6 {[%clk 0:00:27]}  Rd1+ {[%clk 0:00:04]} 58. Kc6 {[%clk 0:00:27]}  Kf5 {[%clk 0:00:05]} 59. Rf7+ {[%clk 0:00:27]}  Ke4 {[%clk 0:00:05]} 60. a7 {[%clk 0:00:26]}  Ra1 {[%clk 0:00:05]} 61. c5 {[%clk 0:00:26]}  Kd4 {[%clk 0:00:04]} 62. Rd7+ {[%clk 0:00:25]}  Ke4 {[%clk 0:00:04]} 63. Kb7 {[%clk 0:00:23]}  Rb1+ {[%clk 0:00:04]} 64. Kc8 {[%clk 0:00:22]}  Ra1 {[%clk 0:00:04]} 65. Kb8 {[%clk 0:00:21]}  Rb1+ {[%clk 0:00:05]} 66. Rb7 {[%clk 0:00:21]}  Ra1 {[%clk 0:00:05]} 67. a8=Q {[%clk 0:00:21]}  Rxa8+ {[%clk 0:00:06]} 68. Kxa8 {[%clk 0:00:21]}  Kxf4 {[%clk 0:00:07]} 69. Rg7 {[%clk 0:00:21]} 1-0


[Site "https://www.chess.com"]

[Event "Titled Tuesday Blitz January 03 Early 2023"]
[White "monkins"]
[Black "Ibadov, Dashgyn"]
[BlackFideId "24107514"]
[WhiteElo "2242"]
[BlackElo "2391"]
[Result "0-1"]
[Round "08"]
[TimeControl "180+2"]
[Date "2023.01.03"]
[WhiteClock "0:00:03"]
[BlackClock "0:00:08"]

1. Nf3 {[%clk 0:03:00]}  d5 {[%clk 0:02:59]} 2. c4 {[%clk 0:03:00]}  d4 {[%clk 0:02:59]} 3. b4 {[%clk 0:03:00]}  Bg4 {[%clk 0:02:56]} 4. d3 {[%clk 0:02:59]}  Bxf3 {[%clk 0:02:52]} 5. exf3 {[%clk 0:02:58]}  e5 {[%clk 0:02:51]} 6. f4 {[%clk 0:02:57]}  Bxb4+ {[%clk 0:02:50]} 7. Bd2 {[%clk 0:02:54]}  Bxd2+ {[%clk 0:02:50]} 8. Qxd2 {[%clk 0:02:54]}  Nc6 {[%clk 0:02:47]} 9. g3 {[%clk 0:02:49]}  exf4 {[%clk 0:02:44]} 10. Qxf4 {[%clk 0:02:35]}  Qe7+ {[%clk 0:02:44]} 11. Qe4 {[%clk 0:02:27]}  Qxe4+ {[%clk 0:02:20]} 12. dxe4 {[%clk 0:02:27]}  Nf6 {[%clk 0:02:21]} 13. Bg2 {[%clk 0:02:24]}  O-O-O {[%clk 0:02:08]} 14. Kd2 {[%clk 0:02:21]}  Rhe8 {[%clk 0:02:03]} 15. f3 {[%clk 0:02:20]}  Ne5 {[%clk 0:01:59]} 16. Na3 {[%clk 0:02:18]}  c5 {[%clk 0:02:00]} 17. h3 {[%clk 0:02:07]}  Nc6 {[%clk 0:01:53]} 18. Rhe1 {[%clk 0:02:01]}  Nh5 {[%clk 0:01:44]} 19. f4 {[%clk 0:01:56]}  Nxg3 {[%clk 0:01:43]} 20. e5 {[%clk 0:01:56]}  Nh5 {[%clk 0:01:32]} 21. Rf1 {[%clk 0:01:48]}  g6 {[%clk 0:01:31]} 22. Nb5 {[%clk 0:01:47]}  Ng3 {[%clk 0:01:25]} 23. Rf2 {[%clk 0:01:33]}  Nf5 {[%clk 0:01:17]} 24. Be4 {[%clk 0:01:23]}  Ne3 {[%clk 0:01:06]} 25. Rc1 {[%clk 0:01:06]}  a6 {[%clk 0:00:58]} 26. Bxc6 {[%clk 0:01:01]}  bxc6 {[%clk 0:00:55]} 27. Nd6+ {[%clk 0:00:58]}  Rxd6 {[%clk 0:00:56]} 28. exd6 {[%clk 0:00:58]}  Kd7 {[%clk 0:00:57]} 29. Kd3 {[%clk 0:00:53]}  Rb8 {[%clk 0:00:47]} 30. h4 {[%clk 0:00:37]}  Rb4 {[%clk 0:00:44]} 31. h5 {[%clk 0:00:36]}  Ra4 {[%clk 0:00:43]} 32. hxg6 {[%clk 0:00:31]}  hxg6 {[%clk 0:00:44]} 33. Rb2 {[%clk 0:00:16]}  Ra3+ {[%clk 0:00:41]} 34. Ke2 {[%clk 0:00:14]}  Kxd6 {[%clk 0:00:36]} 35. Rb7 {[%clk 0:00:09]}  Rxa2+ {[%clk 0:00:29]} 36. Kf3 {[%clk 0:00:09]}  Ra3 {[%clk 0:00:15]} 37. Rxf7 {[%clk 0:00:07]}  Nxc4+ {[%clk 0:00:13]} 38. Kg4 {[%clk 0:00:06]}  Ne3+ {[%clk 0:00:13]} 39. Kg5 {[%clk 0:00:06]}  d3 {[%clk 0:00:13]} 40. Rf6+ {[%clk 0:00:04]}  Kd5 {[%clk 0:00:12]} 41. Rf8 {[%clk 0:00:04]}  Ke4 {[%clk 0:00:10]} 42. Kxg6 {[%clk 0:00:04]}  d2 {[%clk 0:00:10]} 43. Rb1 {[%clk 0:00:04]}  d1=Q {[%clk 0:00:08]} 44. Rxd1 {[%clk 0:00:02]}  Nxd1 {[%clk 0:00:08]} 45. f5 {[%clk 0:00:03]}  Rg3+ {[%clk 0:00:07]} 46. Kf6 {[%clk 0:00:02]}  Ne3 {[%clk 0:00:07]} 47. Ke6 {[%clk 0:00:02]}  Nxf5 {[%clk 0:00:06]} 48. Rxf5 {[%clk 0:00:01]}  Rg6+ {[%clk 0:00:07]} 49. Rf6 {[%clk 0:00:02]}  Rxf6+ {[%clk 0:00:07]} 50. Kxf6 {[%clk 0:00:03]}  c4 {[%clk 0:00:08]} 0-1


[Site "https://www.chess.com"]